[Event "4NCL 2019-20"]
[Site "Daventry"]
[Date "2020.03.01"]
[Round "2"]
[White "Zhu, Yaoyao"]
[Black "Skulte, Christopher"]
[Result "0-1"]
[ECO "B44"]
[WhiteElo "1896"]
[BlackElo "2033"]
[Annotator "ChessBase"]
[PlyCount "66"]
[EventDate "2020.01.11"]
[EventCountry "ENG"]
[SourceTitle "playchess.com"]
[Source "ChessBase"]
[SourceQuality "1"]
[TimeControl "40/6000:3000+30"]

1. e4 {[%emt 0:04:48]} c5 {[%emt 0:00:00]} 2. Nf3 {[%emt 0:00:00]} e6 {[%emt 0:00:51]} 3. g3 {[%emt 0:00:00]} Nc6 {[%emt 0:04:22]} 4. Bg2 {[%emt 0:00:00]} d5 {[%emt 0:01:38]} 5. exd5 {[%emt 0:00:00]} exd5 {[%emt 0:00:20]} 6. d4 {[%emt 0:00:00]} Nf6 {[%emt 0:02:27]} 7. O-O {[%emt 0:00:00]} cxd4 {[%emt 0:03:05]} 8. Nxd4 {[%emt 0:03:05]} Be7 {[%emt 0:04:08]} 9. c3 {[%emt 0:14:11]} O-O {[%emt 0:01:21]} 10. h3 {[%emt 0:06:12]} Qb6 {[%emt 0:04:45]} 11. Nxc6 {[%emt 0:13:16]} bxc6 {[%emt 0:00:00]} 12. Qb3 {[%emt 0:00:00]} Bf5 {[%emt 0:09:17]} 13. Bf4 {[%emt 0:06:52]} Rfe8 {[%emt 0:09:46]} 14. Nd2 {[%emt 0:03:00]} Bf8 {[%emt 0:05:19]} 15. Rfe1 {[%emt 0:07:22]} Qa6 {[%emt 0:14:38]} 16. Nf3 {[%emt 0:14:01]} Bc5 {[%emt 0:10:29]} 17. Nd4 {[%emt 0:07:20]} Bd7 {[%emt 0:00:22]} 18. Qc2 {[%emt 0:00:35]} Qb6 {[%emt 0:01:00]} 19. Nb3 {[%emt 0:01:50]} Bf8 {[%emt 0:00:00]} 20. Rad1 {[%emt 0:00:48]} a5 {[%emt 0:04:09]} 21. Be5 {[%emt 0:02:33]} a4 {[%emt 0:01:44]} 22. Nd4 {[%emt 0:00:01]} Ne4 {[%emt 0:02:40]} 23. Bxe4 {[%emt 0:02:40]} dxe4 {[%emt 0:00:00]} 24. Rxe4 {[%emt 0:00:00]} c5 {[%emt 0:00:00]} 25. Rh4 {[%emt 0:00:00]} g6 {[%emt 0:00:00]} 26. Nf3 {[%emt 0:00:10]} Bc6 {[%emt 0:01:47]} 27. Qe2 {[%emt 0:09:29]} Bg7 {[%emt 0:01:41]} 28. Re4 {[%emt 0:00:11]} Bxe4 {[%emt 0:00:30]} 29. Qxe4 {[%emt 0:00:00]} Bxe5 {[%emt 0:00:20]} 30. Nxe5 {[%emt 0:00:00]} Qe6 {[%emt 0:00:41]} 31. f4 {[%emt 0:00:00]} f6 {[%emt 0:00:23]} 32. Qb7 {[%emt 0:00:00]} fxe5 {[%emt 0:02:08]} 33. Rd7 {[%emt 0:00:21]} exf4 {[%emt 0:01:52]} 0-1

[Event "4NCL 2019-20"]
[Site "Daventry"]
[Date "2020.03.01"]
[Round "2"]
[White "Webster, Peter A N"]
[Black "Carleton, John J"]
[Result "0-1"]
[ECO "B14"]
[WhiteElo "1884"]
[BlackElo "2238"]
[Annotator "ChessBase"]
[PlyCount "80"]
[EventDate "2020.01.11"]
[EventCountry "ENG"]
[SourceTitle "playchess.com"]
[Source "ChessBase"]
[SourceQuality "1"]
[TimeControl "40/6000:3000+30"]

1. e4 {[%emt 0:00:00]} c6 {[%emt 0:00:00]} 2. d4 {[%emt 0:00:00]} d5 {[%emt 0:00:00]} 3. exd5 {[%emt 0:00:00]} cxd5 {[%emt 0:00:00]} 4. c4 {[%emt 0:00:00]} Nf6 {[%emt 0:00:00]} 5. Nc3 {[%emt 0:00:00]} Nc6 {[%emt 0:00:00]} 6. Nf3 {[%emt 0:00:00]} g6 {[%emt 0:01:06]} 7. c5 {[%emt 0:02:10]} Bg7 {[%emt 0:02:49]} 8. Bb5 {[%emt 0:00:49]} O-O {[%emt 0:02:25]} 9. O-O {[%emt 0:04:15]} Ne4 {[%emt 0:04:26]} 10. Bxc6 {[%emt 0:09:34]} bxc6 {[%emt 0:02:40]} 11. Nxe4 {[%emt 0:01:18]} dxe4 {[%emt 0:00:00]} 12. Ne5 {[%emt 0:00:01]} Qd5 {[%emt 0:11:54]} 13. Qb3 {[%emt 0:14:20]} Be6 {[%emt 0:21:23]} 14. Qxd5 {[%emt 0:03:09]} Bxd5 {[%emt 0:00:41]} 15. Rd1 {[%emt 0:02:19]} Rfd8 {[%emt 0:03:27]} 16. Bf4 {[%emt 0:07:19]} g5 {[%emt 0:06:13]} 17. Bd2 {[%emt 0:02:11]} f6 {[%emt 0:05:54]} 18. Ng4 {[%emt 0:00:42]} Be6 {[%emt 0:01:43]} 19. Ne3 {[%emt 0:03:37]} Rxd4 {[%emt 0:01:19]} 20. b3 {[%emt 0:03:35]} Rad8 {[%emt 0:03:08]} 21. Ba5 {[%emt 0:03:48]} Rxd1+ {[%emt 0:01:47]} 22. Rxd1 {[%emt 0:00:00]} Rxd1+ {[%emt 0:01:36]} 23. Nxd1 {[%emt 0:00:00]} f5 {[%emt 0:00:00]} 24. Bc3 {[%emt 0:00:33]} Bd5 {[%emt 0:01:33]} 25. Kf1 {[%emt 0:04:52]} e6 {[%emt 0:03:01]} 26. Ke2 {[%emt 0:01:02]} Bxc3 {[%emt 0:01:50]} 27. Nxc3 {[%emt 0:00:00]} Kf7 {[%emt 0:00:00]} 28. Kd1 {[%emt 0:03:54]} Kf6 {[%emt 0:01:04]} 29. Kc2 {[%emt 0:00:01]} Ke5 {[%emt 0:00:22]} 30. Ne2 {[%emt 0:04:08]} f4 {[%emt 0:02:30]} 31. Kc3 {[%emt 0:01:03]} h5 {[%emt 0:04:45]} 32. a4 {[%emt 0:00:09]} h4 {[%emt 0:05:02]} 33. b4 {[%emt 0:01:17]} a6 {[%emt 0:01:33]} 34. Nd4 {[%emt 0:01:57]} g4 {[%emt 0:01:34]} 35. g3 {[%emt 0:01:50]} e3 {[%emt 0:01:23]} 36. gxf4+ {[%emt 0:07:14]} Kxf4 {[%emt 0:00:00]} 37. fxe3+ {[%emt 0:00:04]} Kxe3 {[%emt 0:00:00]} 38. b5 {[%emt 0:00:01]} cxb5 {[%emt 0:00:00]} 39. axb5 {[%emt 0:00:00]} axb5 {[%emt 0:00:00]} 40. c6 {[%emt 0:00:00]} b4+ {[%emt 0:00:00]} 0-1

[Event "4NCL 2019-20"]
[Site "Daventry"]
[Date "2020.03.01"]
[Round "2"]
[White "Gurjar, Roshan"]
[Black "Ackley, Peter J E"]
[Result "0-1"]
[ECO "B08"]
[WhiteElo "1282"]
[BlackElo "2002"]
[Annotator "ChessBase"]
[PlyCount "99"]
[EventDate "2020.01.11"]
[EventCountry "ENG"]
[SourceTitle "playchess.com"]
[Source "ChessBase"]
[SourceQuality "1"]
[TimeControl "40/6000:3000+30"]

1. e4 {[%emt 0:00:00]} d6 {[%emt 0:00:00]} 2. d4 {[%emt 0:00:00]} g6 {[%emt 0:00:00]} 3. Nc3 {[%emt 0:00:00]} Bg7 {[%emt 0:00:00]} 4. Nf3 {[%emt 0:00:00]} Nf6 {[%emt 0:00:00]} 5. h3 {[%emt 0:00:00]} O-O {[%emt 0:01:10]} 6. Bc4 {[%emt 0:00:00]} Nxe4 {[%emt 0:00:00]} 7. Nxe4 {[%emt 0:00:12]} d5 {[%emt 0:00:00]} 8. Bd3 {[%emt 0:00:11]} dxe4 {[%emt 0:00:00]} 9. Bxe4 {[%emt 0:00:00]} Nd7 {[%emt 0:00:00]} 10. c3 {[%emt 0:00:09]} Nf6 {[%emt 0:00:00]} 11. Bc2 {[%emt 0:00:00]} Be6 {[%emt 0:00:27]} 12. O-O {[%emt 0:00:09]} a5 {[%emt 0:07:00]} 13. Be3 {[%emt 0:08:10]} Nd5 {[%emt 0:05:33]} 14. Qd2 {[%emt 0:01:51]} Nxe3 {[%emt 0:00:46]} 15. fxe3 {[%emt 0:08:41]} c5 {[%emt 0:07:47]} 16. Qe2 {[%emt 0:16:03]} Qb6 {[%emt 0:14:05]} 17. Bd3 {[%emt 0:04:56]} Rac8 {[%emt 0:03:24]} 18. Qd2 {[%emt 0:03:55]} Rfd8 {[%emt 0:11:25]} 19. Bc2 {[%emt 0:01:10]} Bh6 {[%emt 0:01:41]} 20. b3 {[%emt 0:15:40]} cxd4 {[%emt 0:07:18]} 21. Nxd4 {[%emt 0:00:40]} Qc5 {[%emt 0:06:13]} 22. c4 {[%emt 0:04:31]} Bxe3+ {[%emt 0:02:54]} 23. Qxe3 {[%emt 0:00:10]} Qxd4 {[%emt 0:00:00]} 24. Qxd4 {[%emt 0:00:00]} Rxd4 {[%emt 0:00:00]} 25. Rad1 {[%emt 0:00:00]} Rcd8 {[%emt 0:01:18]} 26. Kh2 {[%emt 0:00:00]} f5 {[%emt 0:11:53]} 27. Kg3 {[%emt 0:00:47]} Kf7 {[%emt 0:00:28]} 28. Rxd4 {[%emt 0:00:00]} Rxd4 {[%emt 0:00:00]} 29. Rd1 {[%emt 0:00:00]} Rxd1 {[%emt 0:00:00]} 30. Bxd1 {[%emt 0:00:00]} Kf6 {[%emt 0:00:41]} 31. h4 {[%emt 0:00:00]} h6 {[%emt 0:01:13]} 32. Bc2 {[%emt 0:00:12]} g5 {[%emt 0:00:56]} 33. hxg5+ {[%emt 0:00:03]} hxg5 {[%emt 0:00:00]} 34. Kf3 {[%emt 0:00:19]} g4+ {[%emt 0:00:05]} 35. Kf4 {[%emt 0:00:00]} Bd7 {[%emt 0:00:00]} 36. a3 {[%emt 0:00:06]} e5+ {[%emt 0:00:00]} 37. Ke3 {[%emt 0:00:55]} f4+ {[%emt 0:00:13]} 38. Ke2 {[%emt 0:00:13]} Bc6 {[%emt 0:00:51]} 39. Kf1 {[%emt 0:00:54]} g3 {[%emt 0:00:42]} 40. b4 {[%emt 0:00:00]} axb4 {[%emt 0:00:04]} 41. axb4 {[%emt 0:50:10]} b6 {[%emt 0:51:40]} 42. Bd1 {[%emt 0:01:04]} e4 {[%emt 0:03:04]} 43. c5 {[%emt 0:01:22]} b5 {[%emt 0:02:07]} 44. Kg1 {[%emt 0:01:30]} Ke5 {[%emt 0:00:18]} 45. Kh1 {[%emt 0:01:21]} Kd4 {[%emt 0:00:22]} 46. Kg1 {[%emt 0:00:17]} Kc4 {[%emt 0:00:18]} 47. Bf3 {[%emt 0:01:15]} exf3 {[%emt 0:00:25]} 48. Kh1 {[%emt 0:00:29]} Kxb4 {[%emt 0:00:17]} 49. Kg1 {[%emt 0:00:44]} Kxc5 {[%emt 0:00:09]} 50. gxf3 {[%emt 0:00:18]} 0-1

[Event "4NCL 2019-20"]
[Site "Daventry"]
[Date "2020.01.11"]
[Round "3"]
[White "Schneider, Dmitry"]
[Black "Lund, D Brett"]
[Result "0-1"]
[ECO "B40"]
[WhiteElo "2475"]
[BlackElo "2265"]
[Annotator "ChessBase"]
[PlyCount "111"]
[EventDate "2020.01.11"]
[EventCountry "ENG"]
[SourceTitle "playchess.com"]
[Source "ChessBase"]
[SourceQuality "1"]
[TimeControl "40/6000:3000+30"]

1. e4 {[%emt 0:00:00]} c5 {[%emt 0:00:00]} 2. Nf3 {[%emt 0:00:00]} e6 {[%emt 0:00:00]} 3. Nc3 {[%emt 0:00:00]} a6 {[%emt 0:00:00]} 4. g3 {[%emt 0:00:00]} d5 {[%emt 0:00:39]} 5. exd5 {[%emt 0:00:00]} exd5 {[%emt 0:00:00]} 6. d4 {[%emt 0:00:00]} Nc6 {[%emt 0:03:59]} 7. Bg2 {[%emt 0:01:21]} c4 {[%emt 0:05:52]} 8. O-O {[%emt 0:06:30]} Bb4 {[%emt 0:01:22]} 9. Ng5 {[%emt 0:14:29]} Nf6 {[%emt 0:14:48]} 10. Re1+ {[%emt 0:00:40]} Be7 {[%emt 0:08:23]} 11. Nxd5 {[%emt 0:10:30]} Nxd5 {[%emt 0:00:28]} 12. Nxf7 {[%emt 0:00:00]} Kxf7 {[%emt 0:01:57]} 13. Qh5+ {[%emt 0:01:38]} g6 {[%emt 0:00:17]} 14. Bxd5+ {[%emt 0:00:12]} Ke8 {[%emt 0:00:08]} 15. Qf3 {[%emt 0:00:00]} Rf8 {[%emt 0:06:11]} 16. Bxc6+ {[%emt 0:06:07]} bxc6 {[%emt 0:00:00]} 17. Qxc6+ {[%emt 0:01:43]} Bd7 {[%emt 0:00:00]} 18. Qd5 {[%emt 0:06:59]} Ra7 {[%emt 0:10:23]} 19. Bh6 {[%emt 0:11:14]} Rf7 {[%emt 0:04:54]} 20. Qe5 {[%emt 0:02:11]} Bh3 {[%emt 0:06:10]} 21. d5 {[%emt 0:01:21]} Kd7 {[%emt 0:00:52]} 22. Rad1 {[%emt 0:03:32]} Bd6 {[%emt 0:04:16]} 23. Qc3 {[%emt 0:02:42]} Qf6 {[%emt 0:07:35]} 24. Qxf6 {[%emt 0:06:12]} Rxf6 {[%emt 0:00:00]} 25. Re4 {[%emt 0:00:00]} Bc5 {[%emt 0:05:52]} 26. Be3 {[%emt 0:00:03]} Bxe3 {[%emt 0:01:45]} 27. fxe3 {[%emt 0:01:08]} g5 {[%emt 0:00:26]} 28. g4 {[%emt 0:06:36]} Ra8 {[%emt 0:04:53]} 29. Re5 {[%emt 0:00:05]} Raf8 {[%emt 0:01:59]} 30. Rf5 {[%emt 0:00:00]} Rxf5 {[%emt 0:01:34]} 31. gxf5 {[%emt 0:00:00]} Rxf5 {[%emt 0:00:00]} 32. c3 {[%emt 0:00:00]} h5 {[%emt 0:00:21]} 33. e4 {[%emt 0:00:00]} Rf8 {[%emt 0:01:07]} 34. e5 {[%emt 0:00:00]} h4 {[%emt 0:00:20]} 35. e6+ {[%emt 0:00:00]} Kd6 {[%emt 0:00:38]} 36. b3 {[%emt 0:00:00]} cxb3 {[%emt 0:00:00]} 37. axb3 {[%emt 0:00:00]} g4 {[%emt 0:00:00]} 38. Re1 {[%emt 0:03:09]} Kxd5 {[%emt 0:00:00]} 39. e7 {[%emt 0:00:00]} Re8 {[%emt 0:00:00]} 40. Kf2 {[%emt 0:00:00]} Kd6 {[%emt 0:00:00]} 41. Ra1 {[%emt 0:49:39]} Rxe7 {[%emt 0:51:07]} 42. Rxa6+ {[%emt 0:01:11]} Kd5 {[%emt 0:01:07]} 43. Rh6 {[%emt 0:00:21]} Rf7+ {[%emt 0:00:00]} 44. Ke2 {[%emt 0:00:00]} Rf3 {[%emt 0:00:00]} 45. Rxh4 {[%emt 0:00:00]} Rxc3 {[%emt 0:00:00]} 46. Rh8 {[%emt 0:00:00]} Rc2+ {[%emt 0:00:00]} 47. Ke3 {[%emt 0:00:00]} Rxh2 {[%emt 0:00:00]} 48. Kf4 {[%emt 0:00:00]} Rb2 {[%emt 0:00:00]} 49. Kg3 {[%emt 0:00:00]} Rxb3+ {[%emt 0:00:00]} 50. Kh4 {[%emt 0:00:00]} Re3 {[%emt 0:00:00]} 51. Rd8+ {[%emt 0:00:00]} Ke4 {[%emt 0:00:00]} 52. Re8+ {[%emt 0:00:00]} Kf3 {[%emt 0:00:00]} 53. Rf8+ {[%emt 0:00:00]} Kg2 {[%emt 0:00:00]} 54. Rb8 {[%emt 0:00:00]} Re2 {[%emt 0:00:00]} 55. Rb3 {[%emt 0:00:00]} Kh2 {[%emt 0:00:00]} 56. Ra3 {[%emt 0:00:00]} 0-1

[Event "4NCL 2019-20"]
[Site "Daventry"]
[Date "2020.01.11"]
[Round "3"]
[White "Paehtz, Elisabeth"]
[Black "Lee, Richard W Y"]
[Result "1-0"]
[ECO "A14"]
[WhiteElo "2467"]
[BlackElo "2130"]
[Annotator "ChessBase"]
[PlyCount "117"]
[EventDate "2020.01.11"]
[EventCountry "ENG"]
[SourceTitle "playchess.com"]
[Source "ChessBase"]
[SourceQuality "1"]
[TimeControl "40/6000:3000+30"]

1. c4 {[%emt 0:00:00]} e6 {[%emt 0:00:00]} 2. Nf3 {[%emt 0:00:00]} d5 {[%emt 0:00:00]} 3. e3 {[%emt 0:00:49]} Nf6 {[%emt 0:00:00]} 4. Nc3 {[%emt 0:00:17]} Be7 {[%emt 0:00:24]} 5. b3 {[%emt 0:00:35]} O-O {[%emt 0:00:20]} 6. Bb2 {[%emt 0:00:28]} b6 {[%emt 0:01:08]} 7. g3 {[%emt 0:00:54]} Bb7 {[%emt 0:03:40]} 8. Bg2 {[%emt 0:00:00]} c5 {[%emt 0:09:24]} 9. O-O {[%emt 0:00:00]} Nc6 {[%emt 0:08:53]} 10. cxd5 {[%emt 0:00:00]} Nxd5 {[%emt 0:01:34]} 11. Nxd5 {[%emt 0:00:00]} exd5 {[%emt 0:13:39]} 12. d4 {[%emt 0:00:00]} Ba6 {[%emt 0:10:40]} 13. Re1 {[%emt 0:00:00]} Nb4 {[%emt 0:04:56]} 14. Ne5 {[%emt 0:03:59]} Rc8 {[%emt 0:09:28]} 15. dxc5 {[%emt 0:17:45]} Rxc5 {[%emt 0:04:45]} 16. Qg4 {[%emt 0:00:00]} f6 {[%emt 0:04:59]} 17. Qe6+ {[%emt 0:11:55]} Kh8 {[%emt 0:00:00]} 18. Nf7+ {[%emt 0:00:00]} Rxf7 {[%emt 0:00:00]} 19. Qxf7 {[%emt 0:00:00]} Nc2 {[%emt 0:02:27]} 20. Bd4 {[%emt 0:00:00]} Rc7 {[%emt 0:04:37]} 21. Qxd5 {[%emt 0:03:08]} Qc8 {[%emt 0:00:40]} 22. h4 {[%emt 0:12:35]} Bb7 {[%emt 0:03:39]} 23. Qh5 {[%emt 0:00:44]} Bxg2 {[%emt 0:02:40]} 24. Kxg2 {[%emt 0:00:00]} Qa8+ {[%emt 0:00:29]} 25. Qf3 {[%emt 0:02:26]} Nxe1+ {[%emt 0:00:58]} 26. Rxe1 {[%emt 0:00:00]} Qxf3+ {[%emt 0:00:26]} 27. Kxf3 {[%emt 0:00:00]} Ba3 {[%emt 0:00:52]} 28. Re2 {[%emt 0:00:00]} Kg8 {[%emt 0:00:02]} 29. Ke4 {[%emt 0:02:01]} Kf7 {[%emt 0:00:37]} 30. Kd3 {[%emt 0:01:57]} b5 {[%emt 0:00:44]} 31. g4 {[%emt 0:09:47]} g6 32. e4 {[%emt 0:00:00]} a6 {[%emt 0:04:25]} 33. e5 {[%emt 0:06:01]} fxe5 {[%emt 0:01:16]} 34. Bxe5 {[%emt 0:00:00]} Rc1 {[%emt 0:00:06]} 35. Ke4 {[%emt 0:03:33]} Be7 {[%emt 0:01:12]} 36. Bg3 {[%emt 0:00:30]} Rh1 {[%emt 0:00:14]} 37. g5 {[%emt 0:06:43]} Rc1 {[%emt 0:00:07]} 38. Ke5 {[%emt 0:00:40]} Rc3 {[%emt 0:00:00]} 39. Kd4 {[%emt 0:02:05]} Rc1 {[%emt 0:00:00]} 40. Bf4 {[%emt 0:00:12]} Rc6 {[%emt 0:00:00]} 41. Be5 {[%emt 0:52:14]} Rc1 {[%emt 0:50:13]} 42. Ke4 {[%emt 0:03:02]} Ke6 {[%emt 0:00:55]} 43. Kf4 {[%emt 0:01:15]} Kf7 {[%emt 0:00:00]} 44. Kg4 {[%emt 0:00:00]} Bc5 {[%emt 0:00:00]} 45. Bf4 {[%emt 0:00:00]} Rc3 {[%emt 0:00:00]} 46. h5 {[%emt 0:00:00]} a5 {[%emt 0:00:00]} 47. h6 {[%emt 0:00:00]} a4 {[%emt 0:00:00]} 48. Be5 {[%emt 0:00:00]} Rc1 {[%emt 0:00:00]} 49. Bf6 {[%emt 0:00:00]} axb3 {[%emt 0:00:00]} 50. axb3 {[%emt 0:00:00]} Rg1+ 51. Kf4 {[%emt 0:00:00]} Rb1 52. Rd2 {[%emt 0:00:00]} Ke6 53. Rd8 {[%emt 0:00:00]} Bxf2 54. Re8+ {[%emt 0:00:00]} Kf7 55. Re7+ {[%emt 0:01:06]} Kg8 {[%emt 0:05:38]} 56. Rg7+ {[%emt 0:00:00]} Kf8 {[%emt 0:00:04]} 57. Rxh7 Rxb3 {[%emt 0:00:17]} 58. Rb7 {[%emt 0:00:00]} Ke8 {[%emt 0:02:11]} 59. Ke4 {[%emt 0:00:04]} 1-0

[Event "4NCL 2019-20"]
[Site "Daventry"]
[Date "2020.01.11"]
[Round "3"]
[White "Williams, Simon K"]
[Black "Wadsworth, Matthew J"]
[Result "1/2-1/2"]
[ECO "A43"]
[WhiteElo "2461"]
[BlackElo "2401"]
[Annotator "ChessBase"]
[PlyCount "106"]
[EventDate "2020.01.11"]
[EventCountry "ENG"]
[SourceTitle "playchess.com"]
[Source "ChessBase"]
[SourceQuality "1"]
[TimeControl "40/6000:3000+30"]

1. d4 {[%emt 0:00:00]} Nf6 {[%emt 0:00:00]} 2. Nf3 {[%emt 0:00:00]} c5 {[%emt 0:00:00]} 3. d5 {[%emt 0:04:46]} e6 {[%emt 0:00:00]} 4. Bg5 {[%emt 0:00:46]} Qa5+ {[%emt 0:02:38]} 5. c3 {[%emt 0:00:44]} Nxd5 {[%emt 0:03:14]} 6. e4 {[%emt 0:00:00]} h6 {[%emt 0:07:30]} 7. exd5 {[%emt 0:04:25]} hxg5 {[%emt 0:00:00]} 8. Nxg5 {[%emt 0:00:00]} Be7 {[%emt 0:11:02]} 9. Ne4 {[%emt 0:04:08]} Rh4 {[%emt 0:12:47]} 10. Ng3 {[%emt 0:06:46]} d6 {[%emt 0:14:28]} 11. Nd2 {[%emt 0:00:49]} exd5 {[%emt 0:03:21]} 12. Nf3 {[%emt 0:00:58]} Rh6 {[%emt 0:00:00]} 13. Qxd5 {[%emt 0:00:18]} Nc6 {[%emt 0:01:31]} 14. Nf5 {[%emt 0:12:40]} Bxf5 {[%emt 0:00:08]} 15. Qxf5 {[%emt 0:00:00]} Re6+ {[%emt 0:00:00]} 16. Be2 {[%emt 0:00:19]} Bf6 {[%emt 0:07:07]} 17. Qc2 {[%emt 0:23:24]} Qb5 {[%emt 0:04:17]} 18. Kf1 {[%emt 0:01:29]} c4 {[%emt 0:00:47]} 19. b3 {[%emt 0:01:23]} cxb3 {[%emt 0:00:05]} 20. axb3 {[%emt 0:00:00]} Qc5 {[%emt 0:01:23]} 21. Rc1 {[%emt 0:01:12]} Kf8 {[%emt 0:03:44]} 22. b4 {[%emt 0:01:51]} Qh5 {[%emt 0:00:37]} 23. b5 {[%emt 0:01:40]} Rae8 {[%emt 0:00:00]} 24. Bc4 {[%emt 0:03:38]} d5 {[%emt 0:00:00]} 25. bxc6 {[%emt 0:00:28]} dxc4 {[%emt 0:00:00]} 26. cxb7 {[%emt 0:00:00]} Qd5 {[%emt 0:00:00]} 27. h4 {[%emt 0:12:02]} Qxb7 {[%emt 0:00:19]} 28. Ng5 {[%emt 0:00:00]} Rd6 {[%emt 0:10:54]} 29. Rh3 {[%emt 0:00:52]} Qb3 {[%emt 0:01:32]} 30. Nh7+ {[%emt 0:03:01]} Kg8 {[%emt 0:00:00]} 31. Nxf6+ {[%emt 0:00:00]} Rxf6 {[%emt 0:00:25]} 32. Qxb3 {[%emt 0:00:29]} cxb3 {[%emt 0:00:00]} 33. c4 {[%emt 0:00:00]} Rb8 {[%emt 0:00:25]} 34. Rb1 {[%emt 0:00:00]} Rfb6 {[%emt 0:01:29]} 35. c5 {[%emt 0:00:00]} Rb4 {[%emt 0:00:39]} 36. c6 {[%emt 0:00:00]} b2 {[%emt 0:01:10]} 37. c7 {[%emt 0:00:49]} Rc8 {[%emt 0:00:00]} 38. Rc3 {[%emt 0:00:00]} a5 {[%emt 0:00:46]} 39. Rc2 {[%emt 0:00:00]} a4 {[%emt 0:00:22]} 40. Rbxb2 {[%emt 0:00:00]} Rxb2 {[%emt 0:00:00]} 41. Rxb2 {[%emt 0:49:08]} Rxc7 {[%emt 0:49:42]} 42. Rb8+ {[%emt 0:00:11]} Kh7 {[%emt 0:00:05]} 43. Ra8 {[%emt 0:00:03]} Rc4 {[%emt 0:00:34]} 44. g3 {[%emt 0:00:27]} Kg6 {[%emt 0:02:12]} 45. Ke2 {[%emt 0:00:38]} Rb4 {[%emt 0:01:04]} 46. f3 {[%emt 0:06:05]} f6 {[%emt 0:02:19]} 47. Ra7 {[%emt 0:00:11]} Rb2+ {[%emt 0:02:16]} 48. Ke3 {[%emt 0:00:31]} Rb3+ {[%emt 0:00:14]} 49. Kf4 {[%emt 0:00:12]} a3 {[%emt 0:01:31]} 50. g4 {[%emt 0:00:10]} Kh6 {[%emt 0:01:35]} 51. h5 {[%emt 0:02:50]} g6 {[%emt 0:00:00]} 52. hxg6 {[%emt 0:00:00]} Kxg6 {[%emt 0:00:00]} 53. Kg3 {[%emt 0:00:00]} Rc3 {[%emt 0:00:00]} 1/2-1/2

[Event "4NCL 2019-20"]
[Site "Daventry"]
[Date "2020.01.11"]
[Round "3"]
[White "Sarakauskas, Gediminas"]
[Black "Thorfinnsson, Bjorn"]
[Result "1-0"]
[ECO "C78"]
[WhiteElo "2433"]
[BlackElo "2411"]
[Annotator "ChessBase"]
[PlyCount "81"]
[EventDate "2020.01.11"]
[EventCountry "ENG"]
[SourceTitle "playchess.com"]
[Source "ChessBase"]
[SourceQuality "1"]
[TimeControl "40/6000:3000+30"]

1. e4 {[%emt 0:00:00]} e5 {[%emt 0:00:00]} 2. Nf3 {[%emt 0:00:00]} Nc6 {[%emt 0:00:00]} 3. Bb5 {[%emt 0:00:00]} a6 {[%emt 0:00:00]} 4. Ba4 {[%emt 0:00:00]} Nf6 {[%emt 0:00:00]} 5. O-O {[%emt 0:00:00]} b5 {[%emt 0:00:00]} 6. Bb3 {[%emt 0:00:00]} Bc5 {[%emt 0:00:00]} 7. a4 {[%emt 0:00:00]} Rb8 {[%emt 0:00:00]} 8. Nxe5 {[%emt 0:00:00]} Nxe5 {[%emt 0:00:00]} 9. d4 {[%emt 0:00:00]} Bxd4 {[%emt 0:00:00]} 10. Qxd4 {[%emt 0:00:00]} d6 {[%emt 0:00:00]} 11. f4 {[%emt 0:00:00]} Nc6 {[%emt 0:01:32]} 12. Qc3 {[%emt 0:00:00]} Bb7 {[%emt 0:03:53]} 13. axb5 {[%emt 0:06:53]} axb5 {[%emt 0:00:00]} 14. e5 {[%emt 0:00:24]} Ne4 {[%emt 0:00:00]} 15. Qe3 {[%emt 0:05:06]} Ne7 {[%emt 0:00:41]} 16. Nc3 {[%emt 0:14:39]} Nxc3 {[%emt 0:07:57]} 17. Qxc3 {[%emt 0:23:06]} O-O {[%emt 0:00:15]} 18. f5 {[%emt 0:05:23]} dxe5 {[%emt 0:00:00]} 19. f6 {[%emt 0:09:55]} Ng6 {[%emt 0:00:00]} 20. Bg5 {[%emt 0:00:00]} c5 {[%emt 0:08:56]} 21. Qxc5 {[%emt 0:05:45]} h6 {[%emt 0:06:35]} 22. fxg7 {[%emt 0:00:04]} Qxg5 {[%emt 0:00:00]} 23. gxf8=Q+ {[%emt 0:00:13]} Rxf8 {[%emt 0:00:00]} 24. Bd5 {[%emt 0:08:40]} Rc8 {[%emt 0:00:00]} 25. Qxb5 {[%emt 0:00:51]} Bxd5 {[%emt 0:00:00]} 26. Qxd5 {[%emt 0:00:00]} Nf4 {[%emt 0:00:00]} 27. Qf3 {[%emt 0:05:47]} Rxc2 {[%emt 0:00:00]} 28. Rf2 {[%emt 0:00:00]} Qf5 {[%emt 0:00:00]} 29. Re1 {[%emt 0:02:46]} Rc7 {[%emt 0:03:39]} 30. Kh1 {[%emt 0:01:54]} Qg5 {[%emt 0:01:52]} 31. Qe3 {[%emt 0:00:43]} Qh5 {[%emt 0:01:16]} 32. Qe4 {[%emt 0:01:39]} Kg7 {[%emt 0:00:35]} 33. b4 {[%emt 0:00:00]} Rd7 {[%emt 0:00:00]} 34. Rf3 {[%emt 0:01:11]} Rd4 {[%emt 0:00:00]} 35. Rg3+ {[%emt 0:00:00]} Ng6 {[%emt 0:00:00]} 36. Qb1 {[%emt 0:00:00]} Qh4 {[%emt 0:01:38]} 37. b5 {[%emt 0:00:02]} Rb4 {[%emt 0:00:00]} 38. Qd3 {[%emt 0:00:00]} Rb2 {[%emt 0:00:00]} 39. Rf1 {[%emt 0:00:00]} Qb4 {[%emt 0:06:00]} 40. Rxg6+ {[%emt 0:00:38]} fxg6 {[%emt 0:00:00]} 41. Qd7+ {[%emt 0:50:07]} 1-0

[Event "4NCL 2019-20"]
[Site "Daventry"]
[Date "2020.01.11"]
[Round "3"]
[White "Greet, Andrew N"]
[Black "Ashton, Adam G"]
[Result "1-0"]
[ECO "E04"]
[WhiteElo "2425"]
[BlackElo "2379"]
[Annotator "ChessBase"]
[PlyCount "71"]
[EventDate "2020.01.11"]
[EventCountry "ENG"]
[SourceTitle "playchess.com"]
[Source "ChessBase"]
[SourceQuality "1"]
[TimeControl "40/6000:3000+30"]

1. d4 {[%emt 0:00:00]} d5 {[%emt 0:02:19]} 2. Nf3 {[%emt 0:00:00]} Nf6 {[%emt 0:00:00]} 3. c4 {[%emt 0:00:00]} e6 {[%emt 0:00:00]} 4. g3 {[%emt 0:00:00]} dxc4 {[%emt 0:00:50]} 5. Bg2 {[%emt 0:00:00]} a6 {[%emt 0:00:00]} 6. O-O {[%emt 0:00:00]} Nc6 {[%emt 0:00:00]} 7. e3 {[%emt 0:00:00]} Bd7 {[%emt 0:02:49]} 8. Qe2 {[%emt 0:00:00]} Bd6 {[%emt 0:00:15]} 9. Qxc4 {[%emt 0:00:00]} O-O {[%emt 0:01:13]} 10. Rd1 {[%emt 0:00:00]} Rb8 {[%emt 0:03:01]} 11. Nbd2 {[%emt 0:02:29]} Qe7 {[%emt 0:02:40]} 12. Qc2 {[%emt 0:08:28]} Nb4 {[%emt 0:03:40]} 13. Qb3 {[%emt 0:01:12]} Bc6 {[%emt 0:01:35]} 14. a3 {[%emt 0:00:46]} Bd5 {[%emt 0:14:23]} 15. Qc3 {[%emt 0:00:21]} Na2 {[%emt 0:19:29]} 16. Rxa2 {[%emt 0:10:44]} Bxa2 {[%emt 0:00:00]} 17. Qc2 {[%emt 0:01:13]} c5 {[%emt 0:09:39]} 18. dxc5 {[%emt 0:00:57]} Bxc5 {[%emt 0:00:00]} 19. b4 {[%emt 0:00:00]} Bxe3 {[%emt 0:01:43]} 20. Qxa2 {[%emt 0:00:56]} Ba7 {[%emt 0:00:30]} 21. Bb2 {[%emt 0:09:58]} Rfd8 {[%emt 0:00:54]} 22. Qb1 {[%emt 0:09:43]} a5 {[%emt 0:05:06]} 23. bxa5 {[%emt 0:03:57]} Bxf2+ {[%emt 0:18:13]} 24. Kxf2 {[%emt 0:03:39]} Ng4+ {[%emt 0:05:37]} 25. Ke2 {[%emt 0:01:17]} Qc5 {[%emt 0:02:23]} 26. Bd4 {[%emt 0:02:48]} Rxd4 {[%emt 0:00:14]} 27. Nxd4 {[%emt 0:00:00]} Qxd4 {[%emt 0:00:00]} 28. Qb6 {[%emt 0:00:00]} Qe5+ {[%emt 0:00:04]} 29. Ne4 {[%emt 0:00:00]} f5 {[%emt 0:00:40]} 30. h3 {[%emt 0:11:47]} Nf6 {[%emt 0:02:03]} 31. Qd6 {[%emt 0:01:26]} Qb5+ {[%emt 0:00:00]} 32. Kf2 {[%emt 0:05:03]} Nxe4+ {[%emt 0:00:00]} 33. Bxe4 {[%emt 0:00:00]} Re8 {[%emt 0:00:00]} 34. Bf3 {[%emt 0:02:31]} Qxa5 {[%emt 0:00:00]} 35. Rb1 {[%emt 0:03:28]} b5 {[%emt 0:00:06]} 36. Be2 {[%emt 0:04:19]} 1-0